fUST/lending_fUST_20250202
["ID","MTS","AMOUNT","RATE_DAILY","PERIOD"]
[351250326,1738480242618,162.19,0.00010959,2]
[351250336,1738480242943,-432.14757081,0.00016712,2]
[351250337,1738480242955,-414.46,0.00016712,2]
[351250338,1738480242966,-1126.39,0.00016712,2]
[351250339,1738480242979,-484.17,0.00016712,2]
[351250340,1738480242990,-554.35,0.00016712,2]
[351250341,1738480243002,-585.14,0.00016712,2]
[351250342,1738480243013,-2664.62413213,0.00016712,2]
[351250343,1738480243027,-4078.582171,0.00016712,2]
[351250344,1738480243040,-367.24369687,0.00016712,2]
[351250345,1738480243051,-500.0,0.00016712,2]
[351250346,1738480243064,-500.0,0.00016712,2]
[351250347,1738480243074,-372.02246188,0.00016712,2]
[351250348,1738480243089,-127.97753812,0.00016712,2]
[351250349,1738480243100,-500.0,0.00016712,2]
[351250350,1738480243111,-385.56,0.00016712,2]
[351250351,1738480243122,-546.32163183,0.00016712,2]
[351250353,1738480243136,-469.44836817,0.00016712,2]
[351250355,1738480243147,-500.0,0.00016712,2]
[351250357,1738480243158,-379.83204203,0.00016712,2]
[351250359,1738480243169,-500.0,0.00016712,2]
[351250360,1738480243181,-500.0,0.00016712,2]
[351250361,1738480243192,-500.0,0.00016712,2]
[351250362,1738480243203,-500.0,0.00016712,2]
[351250363,1738480243215,-500.0,0.00016712,2]
[351250364,1738480243226,-413.71152694,0.00016712,2]
[351250365,1738480243237,-500.0,0.00016712,2]
[351250366,1738480243247,-500.0,0.00016712,2]
[351250367,1738480243256,-1428.78927749,0.00016712,2]
[351250368,1738480243269,-465.41072251,0.00016712,2]
[351250369,1738480243278,-768.59,0.00016712,2]
[351250370,1738480243288,-500.0,0.00016712,2]
[351250371,1738480243431,-500.0,0.00016712,2]
[351250372,1738480243443,-969.3,0.00016712,2]
[351250373,1738480243452,-895.2,0.00016712,2]
[351250374,1738480243462,-500.0,0.00016712,2]
[351250375,1738480243471,-500.0,0.00016712,2]
[351250376,1738480243481,-560.96,0.00016712,2]
[351250377,1738480243491,-500.0,0.00016712,2]
[351250378,1738480243500,-10738.68,0.00016712,2]
[351250379,1738480243510,-500.0,0.00016712,2]
[351250380,1738480243519,-500.0,0.00016712,2]
[351250381,1738480243529,-505.35,0.00016712,2]
[351250382,1738480243538,-500.0,0.00016712,2]
[351250383,1738480243547,-500.0,0.00016712,2]
[351250384,1738480243557,-2568.51,0.00016712,2]
[351250385,1738480243568,-500.0,0.00016712,2]
[351250386,1738480243578,-806.31,0.00016712,2]
[351250387,1738480243587,-500.0,0.00016712,2]
[351250388,1738480243596,-500.0,0.00016712,2]
[351250389,1738480243605,-1454.26,0.00016712,2]
[351250390,1738480243615,-500.0,0.00016712,2]
[351250391,1738480243624,-500.0,0.00016712,2]
[351250392,1738480243635,-358.53,0.00016849,2]
[351250393,1738480243654,-500.0,0.00016849,2]
[351250394,1738480243667,-500.0,0.00016849,2]
[351250395,1738480243677,-500.0,0.00016849,2]
[351250396,1738480243687,-500.0,0.00016849,2]
[351250397,1738480243697,-500.0,0.00016849,2]
[351250398,1738480243706,-500.0,0.00016849,2]
[351250399,1738480243715,-500.0,0.00016849,2]
[351250400,1738480243724,-549.72114575,0.00016849,2]
[351250401,1738480243733,-500.0,0.00016849,2]
[351250402,1738480243743,-500.0,0.00016849,2]
[351250403,1738480243753,-500.0,0.00016849,2]
[351250404,1738480243762,-500.0,0.00016849,2]
[351250405,1738480243772,-625.53,0.00016849,2]
[351250406,1738480243781,-1126.39,0.00016849,2]
[351250407,1738480243790,-554.35,0.00016849,2]
[351250408,1738480243799,-585.14,0.00016849,2]
[351250409,1738480243809,-7110.45,0.00016849,2]
[351250410,1738480243818,-435.81,0.00016849,2]
[351250411,1738480243828,-500.0,0.00016849,2]
[351250412,1738480243837,-500.0,0.00016849,2]
[351250413,1738480243846,-500.0,0.00016849,2]
[351250414,1738480243855,-592.39902944,0.00016849,2]
[351250415,1738480243868,-423.37097056,0.00016849,2]
[351250416,1738480243878,-500.0,0.00016849,2]
[351250417,1738480243887,-500.0,0.00016849,2]
[351250418,1738480243896,-500.0,0.00016849,2]
[351250419,1738480243905,-500.0,0.00016849,2]
[351250420,1738480243914,-500.0,0.00016849,2]
[351250421,1738480243923,-500.0,0.00016849,2]
[351250422,1738480243934,-1894.2,0.00016849,2]
[351250423,1738480243943,-768.59,0.00016849,2]
[351250424,1738480243953,-500.0,0.00016849,2]
[351250425,1738480243962,-500.0,0.00016849,2]
[351250426,1738480243971,-374.89574406,0.00016849,2]
[351250436,1738480245980,-594.40425594,0.00016849,2]
[351250437,1738480245990,-895.2,0.00016849,2]
[351250438,1738480246004,-500.0,0.00016849,2]
[351250439,1738480246018,-500.0,0.00016849,2]
[351250440,1738480246029,-500.0,0.00016849,2]
[351250441,1738480246039,-7468.26620756,0.00016849,2]
[351250442,1738480246050,-3270.41379244,0.00016849,2]
[351250443,1738480246060,-284.48,0.00016849,2]
[351250445,1738480246069,-500.0,0.00016849,2]
[351250447,1738480246080,-505.35,0.00016849,2]
[351250449,1738480246089,-500.0,0.00016849,2]
[351250451,1738480246099,-500.0,0.00016849,2]
[351250452,1738480246109,-2568.51,0.00016849,2]
[351250454,1738480246118,-500.0,0.00016849,2]
[351250457,1738480246128,-806.31,0.00016849,2]
[351250458,1738480246138,-500.0,0.00016849,2]
[351250460,1738480246147,-64.93620755,0.00016849,2]
[351250465,1738480246196,-148.86648028,0.00016849,2]
[351250467,1738480246208,-286.19731217,0.00016849,2]
[351250468,1738480246217,-318.80268783,0.00016849,2]
[351250469,1738480246229,-1135.45731217,0.00016849,2]
[351250470,1738480246238,-500.0,0.00016849,2]
[351250471,1738480246247,-500.0,0.00016849,2]
[351250472,1738480246257,-190.43298953,0.00016886,5]
[351250473,1738480246267,-2138.78531086,0.00016886,2]
[351250474,1738480246277,-3997.61506166,0.00016886,2]
[351250475,1738480246358,-394.0,0.00016886,2]
[351250476,1738480251101,648.79,0.00010959,2]
[351250478,1738480805677,845.17,0.00010959,2]
[351250479,1738480826380,262.52,0.00010959,2]
[351250480,1738480837234,218.77,0.00010959,2]
[351250481,1738480847705,182.3,0.00010959,2]
[351250482,1738480868489,151.92,0.00010959,2]
[351250483,1738480878980,759.63,0.00010959,2]
[351250484,1738480988191,170.170525,0.00013973,2]
[351250487,1738481174413,233.122321,0.00013699,2]
[351250488,1738481238157,-500.0,0.00015342,2]
[351250489,1738481238196,-300.0,0.00015519,2]
[351250490,1738481238236,-4583.349345,0.0001552,2]
[351250491,1738481247098,-10575.74251705,0.0001552,2]
[351250521,1738481432245,-300.0,0.00015299,2]
[351250523,1738481432254,-1450.75781448,0.000153,2]
[351250525,1738481432266,-2126.83669878,0.000153,2]
[351250528,1738481432277,-22421.18784576,0.000153,2]
[351250538,1738481432408,-111328.06370873,0.000153,2]
[351250539,1738481432418,-500.0,0.00015342,2]
[351250540,1738481432428,-9740.90813795,0.0001552,2]
[351250541,1738481432438,-402.60604834,0.00015999,2]
[351250543,1738481432447,-239.01748986,0.00015999,2]
[351250545,1738481432457,-649.99867542,0.00015999,2]
[351250547,1738481432467,-128103.93656208,0.00016,2]
[351250548,1738481432476,-21276.77156591,0.00016,2]
[351250551,1738481432486,-283.55478035,0.00016328,2]
[351250553,1738481432499,-153.12713053,0.00016428,2]
[351250555,1738481432509,-574.13831262,0.00016438,2]
[351250557,1738481432519,-1000.0,0.00016438,2]
[351250559,1738481432528,-500.0,0.00016438,2]
[351250562,1738481432662,-504.33723415,0.00016438,2]
[351250563,1738481432672,-262.78936139,0.00016438,2]
[351250564,1738481432681,-187.7885143,0.00016438,2]
[351250565,1738481432690,-500.0,0.00016438,2]
[351250566,1738481432700,-399.86252813,0.00016438,2]
[351250567,1738481432709,-500.0,0.00016438,2]
[351250568,1738481432718,-500.0,0.00016438,2]
[351250569,1738481432729,-500.0,0.00016438,2]
[351250570,1738481432741,-500.0,0.00016438,2]
[351250571,1738481432750,-500.0,0.00016438,2]
[351250572,1738481432760,-500.0,0.00016438,2]
[351250573,1738481432771,-500.0,0.00016438,2]
[351250574,1738481432780,-500.0,0.00016438,2]
[351250575,1738481432790,-501.7246612,0.00016438,2]
[351250576,1738481432803,-501.29574141,0.00016438,2]
[351250577,1738481432815,-473.27373939,0.00016438,2]
[351250578,1738481432824,-500.0,0.00016438,2]
[351250579,1738481432833,-620.21767581,0.00016438,2]
[351250580,1738481432843,-500.0,0.00016438,2]
[351250581,1738481432852,-507.54879555,0.00016438,2]
[351250582,1738481432861,-506.81487932,0.00016438,2]
[351250583,1738481432871,-500.0,0.00016438,2]
[351250584,1738481432882,-500.0,0.00016438,2]
[351250585,1738481432891,-500.0,0.00016438,2]
[351250586,1738481432900,-500.0,0.00016438,2]
[351250587,1738481432910,-500.0,0.00016438,2]
[351250588,1738481432920,-500.0,0.00016438,2]
[351250589,1738481432930,-500.0,0.00016438,2]
[351250590,1738481432940,-500.0,0.00016438,2]
[351250591,1738481432949,-500.0,0.00016438,2]
[351250592,1738481432959,-502.73551825,0.00016438,2]
[351250593,1738481432970,-500.0,0.00016438,2]
[351250594,1738481432979,-500.0,0.00016438,2]
[351250595,1738481432988,-500.0,0.00016438,2]
[351250596,1738481432998,-500.0,0.00016438,2]
[351250597,1738481433007,-500.0,0.00016438,2]
[351250598,1738481433016,-500.0,0.00016438,2]
[351250599,1738481433026,-500.0,0.00016438,2]
[351250600,1738481433035,-500.0,0.00016438,2]
[351250601,1738481433044,-500.0,0.00016438,2]
[351250602,1738481433057,-500.0,0.00016438,2]
[351250603,1738481433066,-504.51740184,0.00016438,2]
[351250604,1738481433076,-500.0,0.00016438,2]
[351250605,1738481433086,-505.35468117,0.00016438,2]
[351250606,1738481433096,-500.0,0.00016438,2]
[351250607,1738481433105,-502.67930547,0.00016438,2]
[351250608,1738481433115,-500.0,0.00016438,2]
[351250609,1738481433125,-504.88871867,0.00016438,2]
[351250610,1738481433134,-500.0,0.00016438,2]
[351250611,1738481433144,-502.86890808,0.00016438,2]
[351250612,1738481433155,-504.84141344,0.00016438,2]
[351250613,1738481433164,-502.52072628,0.00016438,2]
[351250614,1738481433174,-506.99580976,0.00016438,2]
[351250615,1738481433184,-500.0,0.00016438,2]
[351250616,1738481433195,-504.09546336,0.00016438,2]
[351250617,1738481433206,-500.0,0.00016438,2]
[351250618,1738481433215,-526.54564211,0.00016438,2]
[351250619,1738481433225,-500.0,0.00016438,2]
[351250620,1738481433234,-500.0,0.00016438,2]
[351250621,1738481433243,-500.0,0.00016438,2]
[351250622,1738481433253,-500.0,0.00016438,2]
[351250623,1738481433263,-500.0,0.00016438,2]
[351250624,1738481433272,-506.31132945,0.00016438,2]
[351250625,1738481433282,-300.0,0.00016438,2]
[351250626,1738481433292,-500.0,0.00016438,2]
[351250627,1738481433303,-500.0,0.00016438,2]
[351250628,1738481433313,-505.7519213,0.00016438,2]
[351250629,1738481433323,-500.0,0.00016438,2]
[351250630,1738481433333,-506.43158707,0.00016438,2]
[351250631,1738481433344,-500.0,0.00016438,2]
[351250632,1738481433354,-501.1665658,0.00016438,2]
[351250633,1738481433364,-500.0,0.00016438,2]
[351250634,1738481433374,-500.0,0.00016438,2]
[351250635,1738481433384,-501.27345042,0.00016438,2]
[351250636,1738481433394,-501.48406255,0.00016438,2]
[351250637,1738481433404,-502.31614699,0.00016438,2]
[351250638,1738481433414,-500.0,0.00016438,2]
[351250639,1738481433423,-500.0,0.00016438,2]
[351250640,1738481433433,-500.0,0.00016438,2]
[351250641,1738481433443,-500.0,0.00016438,2]
[351250642,1738481433452,-500.0,0.00016438,2]
[351250643,1738481433463,-500.0,0.00016438,2]
[351250644,1738481433472,-500.0,0.00016438,2]
[351250645,1738481433482,-500.0,0.00016438,2]
[351250646,1738481433496,-500.0,0.00016438,2]
[351250647,1738481433513,-500.0,0.00016438,2]
[351250648,1738481433529,-500.0,0.00016438,2]
[351250649,1738481433541,-500.0,0.00016438,2]
[351250650,1738481433556,-500.0,0.00016438,2]
[351250651,1738481433570,-500.00000001,0.00016438,2]
[351250652,1738481433584,-500.0,0.00016438,2]
[351250653,1738481433601,-500.0,0.00016438,2]
[351250654,1738481433615,-500.0,0.00016438,2]
[351250655,1738481433630,-500.0,0.00016438,2]
[351250656,1738481433645,-500.0,0.00016438,2]
[351250657,1738481433658,-503.40673667,0.00016438,2]
[351250658,1738481433670,-500.0,0.00016438,2]
[351250659,1738481433684,-500.0,0.00016438,2]
[351250660,1738481433699,-500.0,0.00016438,2]
[351250661,1738481433716,-503.12681267,0.00016438,2]
[351250662,1738481433727,-505.12742326,0.00016438,2]
[351250663,1738481433743,-500.0,0.00016438,2]
[351250664,1738481433755,-500.0,0.00016438,2]
[351250665,1738481433772,-500.0,0.00016438,2]
[351250666,1738481433786,-500.0,0.00016438,2]
[351250667,1738481433800,-500.0,0.00016438,2]
[351250668,1738481433817,-500.0,0.00016438,2]
[351250669,1738481433832,-577.18360982,0.00016438,2]
[351250670,1738481433846,-500.0,0.00016438,2]
[351250671,1738481433857,-500.0,0.00016438,2]
[351250672,1738481433868,-500.0,0.00016438,2]
[351250673,1738481433881,-500.0,0.00016438,2]
[351250674,1738481433897,-500.0,0.00016438,2]
[351250675,1738481433911,-500.0,0.00016438,2]
[351250676,1738481433922,-500.0,0.00016438,2]
[351250677,1738481433933,-500.0,0.00016438,2]
[351250678,1738481433947,-500.0,0.00016438,2]
[351250679,1738481433958,-500.0,0.00016438,2]
[351250680,1738481433969,-500.0,0.00016438,2]
[351250681,1738481433981,-275.53809574,0.00016438,2]
[351250682,1738481433993,-500.0,0.00016438,2]
[351250683,1738481434005,-500.0,0.00016438,2]
[351250684,1738481434017,-500.0,0.00016438,2]
[351250685,1738481434030,-500.0,0.00016438,2]
[351250686,1738481434044,-500.0,0.00016438,2]
[351250687,1738481434058,-500.0,0.00016438,2]
[351250688,1738481434069,-500.0,0.00016438,2]
[351250689,1738481434081,-500.0,0.00016438,2]
[351250690,1738481434095,-500.0,0.00016438,2]
[351250691,1738481434107,-500.0,0.00016438,2]
[351250692,1738481434120,-500.0,0.00016438,2]
[351250693,1738481434132,-502.98263348,0.00016438,2]
[351250694,1738481434144,-500.0,0.00016438,2]
[351250695,1738481434157,-500.0,0.00016438,2]
[351250696,1738481434168,-500.0,0.00016438,2]
[351250697,1738481434179,-500.0,0.00016438,2]
[351250698,1738481434191,-500.0,0.00016438,2]
[351250699,1738481434203,-500.0,0.00016438,2]
[351250700,1738481434221,-500.0,0.00016438,2]
[351250701,1738481434233,-500.0,0.00016438,2]
[351250702,1738481434245,-571.57914145,0.00016438,2]
[351250703,1738481434258,-500.0,0.00016438,2]
[351250704,1738481434270,-500.0,0.00016438,2]
[351250705,1738481434282,-500.0,0.00016438,2]
[351250706,1738481434294,-503.19474602,0.00016438,2]
[351250707,1738481434308,-500.0,0.00016438,2]
[351250708,1738481434320,-507.08201423,0.00016438,2]
[351250709,1738481434332,-500.0,0.00016438,2]
[351250710,1738481434345,-500.0,0.00016438,2]
[351250711,1738481434357,-500.0,0.00016438,2]
[351250712,1738481434370,-500.0,0.00016438,2]
[351250713,1738481434383,-500.0,0.00016438,2]
[351250714,1738481434395,-500.0,0.00016438,2]
[351250715,1738481434408,-509.06350669,0.00016438,2]
[351250716,1738481434421,-500.0,0.00016438,2]
[351250717,1738481434433,-500.0,0.00016438,2]
[351250718,1738481434446,-500.0,0.00016438,2]
[351250719,1738481434457,-500.0,0.00016438,2]
[351250720,1738481434470,-500.0,0.00016438,2]
[351250721,1738481434483,-500.0,0.00016438,2]
[351250722,1738481434496,-500.0,0.00016438,2]
[351250723,1738481434508,-500.0,0.00016438,2]
[351250724,1738481434520,-500.0,0.00016438,2]
[351250725,1738481434532,-500.0,0.00016438,2]
[351250726,1738481434544,-512.50351832,0.00016438,2]
[351250727,1738481434558,-547.78017509,0.00016438,2]
[351250728,1738481434570,-500.0,0.00016438,2]
[351250729,1738481434582,-500.0,0.00016438,2]
[351250730,1738481434726,-280.94793704,0.00016438,2]
[351250731,1738481434745,-500.0,0.00016438,2]
[351250732,1738481434755,-500.0,0.00016438,2]
[351250733,1738481434764,-500.0,0.00016438,2]
[351250734,1738481434774,-500.0,0.00016438,2]
[351250735,1738481434784,-500.0,0.00016438,2]
[351250736,1738481434794,-500.0,0.00016438,2]
[351250737,1738481434805,-500.0,0.00016438,2]
[351250738,1738481434815,-500.0,0.00016438,2]
[351250739,1738481434824,-500.0,0.00016438,2]
[351250740,1738481434835,-500.0,0.00016438,2]
[351250741,1738481434844,-500.0,0.00016438,2]
[351250742,1738481434854,-500.0,0.00016438,2]
[351250743,1738481434863,-500.0,0.00016438,2]
[351250744,1738481434873,-500.0,0.00016438,2]
[351250745,1738481434883,-500.0,0.00016438,2]
[351250746,1738481434892,-500.0,0.00016438,2]
[351250747,1738481434903,-500.0,0.00016438,2]
[351250748,1738481434913,-500.0,0.00016438,2]
[351250749,1738481434924,-501.6966905,0.00016438,2]
[351250750,1738481434933,-500.0,0.00016438,2]
[351250751,1738481434943,-301.28411828,0.00016438,2]
[351250752,1738481434953,-500.0,0.00016438,2]
[351250753,1738481434963,-500.0,0.00016438,2]
[351250754,1738481434979,-500.0,0.00016438,2]
[351250755,1738481434989,-500.0,0.00016438,2]
[351250756,1738481434999,-500.0,0.00016438,2]
[351250757,1738481435009,-500.0,0.00016438,2]
[351250758,1738481435019,-500.88736168,0.00016438,2]
[351250759,1738481435030,-500.0,0.00016438,2]
[351250760,1738481435044,-500.0,0.00016438,2]
[351250761,1738481435055,-500.0,0.00016438,2]
[351250762,1738481435064,-500.0,0.00016438,2]
[351250763,1738481435073,-500.0,0.00016438,2]
[351250764,1738481435083,-500.0,0.00016438,2]
[351250765,1738481435092,-500.0,0.00016438,2]
[351250766,1738481435102,-504.39679104,0.00016438,2]
[351250767,1738481435112,-504.89889656,0.00016438,2]
[351250768,1738481435121,-500.0,0.00016438,2]
[351250769,1738481435132,-500.0,0.00016438,2]
[351250770,1738481435142,-500.0,0.00016438,2]
[351250771,1738481435151,-500.0,0.00016438,2]
[351250772,1738481435161,-500.0,0.00016438,2]
[351250773,1738481435170,-500.0,0.00016438,2]
[351250774,1738481435180,-500.0,0.00016438,2]
[351250775,1738481435190,-253.59021232,0.00016438,2]
[351250776,1738481435199,-500.0,0.00016438,2]
[351250777,1738481435208,-501.06111451,0.00016438,2]
[351250778,1738481435218,-500.59016103,0.00016438,2]
[351250779,1738481435228,-506.05382003,0.00016438,2]
[351250780,1738481435237,-502.20475837,0.00016438,2]
[351250781,1738481435246,-500.0,0.00016438,2]
[351250782,1738481435255,-503.50695157,0.00016438,2]
[351250783,1738481435265,-565.40523047,0.00016438,2]
[351250784,1738481435275,-500.0,0.00016438,2]
[351250785,1738481435284,-564.81240803,0.00016438,2]
[351250786,1738481435293,-500.0,0.00016438,2]
[351250787,1738481435303,-500.0,0.00016438,2]
[351250788,1738481435313,-500.0,0.00016438,2]
[351250789,1738481435323,-500.0,0.00016438,2]
[351250790,1738481435333,-500.0,0.00016438,2]
[351250791,1738481435343,-503.74509172,0.00016438,2]
[351250792,1738481435352,-500.0,0.00016438,2]
[351250793,1738481435362,-500.0,0.00016438,2]
[351250794,1738481435372,-500.0,0.00016438,2]
[351250795,1738481435382,-500.0,0.00016438,2]
[351250796,1738481435391,-503.62829985,0.00016438,2]
[351250797,1738481435401,-504.75694032,0.00016438,2]
[351250798,1738481435410,-500.0,0.00016438,2]
[351250799,1738481435420,-500.0,0.00016438,2]
[351250800,1738481435430,-500.0,0.00016438,2]
[351250801,1738481435439,-500.0,0.00016438,2]
[351250802,1738481435448,-500.0,0.00016438,2]
[351250803,1738481435458,-500.0,0.00016438,2]
[351250804,1738481435467,-500.0,0.00016438,2]
[351250805,1738481435476,-500.0,0.00016438,2]
[351250806,1738481435486,-500.0,0.00016438,2]
[351250807,1738481435495,-500.0,0.00016438,2]
[351250808,1738481435505,-500.0,0.00016438,2]
[351250809,1738481435514,-500.0,0.00016438,2]
[351250810,1738481435524,-525.1987184,0.00016438,2]
[351250811,1738481435534,-500.0,0.00016438,2]
[351250812,1738481435545,-500.0,0.00016438,2]
[351250813,1738481435556,-500.0,0.00016438,2]
[351250814,1738481435565,-500.0,0.00016438,2]
[351250815,1738481435575,-500.0,0.00016438,2]
[351250816,1738481435585,-500.0,0.00016438,2]
[351250817,1738481435595,-152.310715,0.00016438,2]
[351250818,1738481435604,-500.0,0.00016438,2]
[351250819,1738481435613,-500.0,0.00016438,2]
[351250820,1738481435623,-500.0,0.00016438,2]
[351250821,1738481435633,-500.0,0.00016438,2]
[351250822,1738481435644,-500.0,0.00016438,2]
[351250823,1738481435654,-500.0,0.00016438,2]
[351250824,1738481435663,-500.0,0.00016438,2]
[351250825,1738481435674,-500.0,0.00016438,2]
[351250826,1738481435683,-500.0,0.00016438,2]
[351250827,1738481435693,-500.0,0.00016438,2]
[351250828,1738481435703,-500.0,0.00016438,2]
[351250829,1738481435713,-151.0,0.00016438,2]
[351250830,1738481435724,-500.0,0.00016438,2]
[351250831,1738481435735,-500.0,0.00016438,2]
[351250832,1738481435746,-500.0,0.00016438,2]
[351250833,1738481435755,-463.05134505,0.00016438,2]
[351250834,1738481435764,-500.0,0.00016438,2]
[351250835,1738481435775,-500.0,0.00016438,2]
[351250836,1738481435785,-500.0,0.00016438,2]
[351250837,1738481435794,-510.43748257,0.00016438,2]
[351250838,1738481435806,-500.0,0.00016438,2]
[351250839,1738481435817,-500.0,0.00016438,2]
[351250840,1738481435827,-500.0,0.00016438,2]
[351250841,1738481435837,-500.0,0.00016438,2]
[351250842,1738481435847,-500.0,0.00016438,2]
[351250843,1738481435857,-500.0,0.00016438,2]
[351250844,1738481435867,-500.0,0.00016438,2]
[351250845,1738481435877,-500.0,0.00016438,2]
[351250846,1738481435886,-500.0,0.00016438,2]
[351250847,1738481435897,-500.0,0.00016438,2]
[351250848,1738481435906,-500.0,0.00016438,2]
[351250849,1738481435916,-500.0,0.00016438,2]
[351250850,1738481435925,-500.0,0.00016438,2]
[351250851,1738481435935,-500.0,0.00016438,2]
[351250852,1738481435944,-500.0,0.00016438,2]
[351250853,1738481435954,-920.04,0.00016438,2]
[351250854,1738481435963,-500.0,0.00016438,2]
[351250855,1738481435972,-500.0,0.00016438,2]
[351250856,1738481435982,-500.0,0.00016438,2]
[351250857,1738481435991,-500.0,0.00016438,2]
[351250858,1738481436001,-500.0,0.00016438,2]
[351250859,1738481436010,-500.0,0.00016438,2]
[351250860,1738481436020,-500.0,0.00016438,2]
[351250861,1738481436030,-500.0,0.00016438,2]
[351250862,1738481436039,-500.0,0.00016438,2]
[351250863,1738481436049,-513.72,0.00016438,2]
[351250864,1738481436058,-500.0,0.00016438,2]
[351250865,1738481436068,-500.0,0.00016438,2]
[351250866,1738481436078,-500.0,0.00016438,2]
[351250867,1738481436087,-500.0,0.00016438,2]
[351250868,1738481436096,-500.0,0.00016438,2]
[351250869,1738481436106,-500.0,0.00016438,2]
[351250870,1738481436116,-500.0,0.00016438,2]
[351250871,1738481436125,-2058.13,0.00016438,2]
[351250872,1738481436136,-21711.88,0.00016438,2]
[351250873,1738481436147,-500.0,0.00016438,2]
[351250874,1738481436156,-500.0,0.00016438,2]
[351250875,1738481436166,-2361.74,0.00016438,2]
[351250876,1738481436176,-500.0,0.00016438,2]
[351250877,1738481436186,-500.0,0.00016438,2]
[351250878,1738481436195,-634.21076995,0.00016438,2]
[351250879,1738481436205,-500.0,0.00016438,2]
[351250880,1738481436215,-500.0,0.00016438,2]
[351250881,1738481436225,-500.0,0.00016438,2]
[351250882,1738481436235,-500.0,0.00016438,2]
[351250883,1738481436245,-500.0,0.00016438,2]
[351250884,1738481436255,-914.87,0.00016438,2]
[351250885,1738481436265,-500.0,0.00016438,2]
[351250886,1738481436275,-525.44277291,0.00016438,2]
[351250887,1738481436285,-500.0,0.00016438,2]
[351250888,1738481436295,-151.0,0.00016438,2]
[351250889,1738481436306,-500.0,0.00016438,2]
[351250890,1738481436316,-765.64,0.00016438,2]
[351250891,1738481436327,-18497.3,0.00016438,2]
[351250892,1738481436337,-500.0,0.00016438,2]
[351250893,1738481436347,-797.42,0.00016438,2]
[351250894,1738481436357,-500.0,0.00016438,2]
[351250895,1738481436367,-500.0,0.00016438,2]
[351250896,1738481436377,-500.0,0.00016438,2]
[351250897,1738481436387,-500.0,0.00016438,2]
[351250898,1738481436396,-500.0,0.00016438,2]
[351250899,1738481436406,-500.0,0.00016438,2]
[351250900,1738481436416,-500.0,0.00016438,2]
[351250901,1738481436428,-500.0,0.00016438,2]
[351250902,1738481436437,-500.0,0.00016438,2]
[351250903,1738481436448,-500.0,0.00016438,2]
[351250904,1738481436458,-500.0,0.00016438,2]
[351250905,1738481436467,-500.0,0.00016438,2]
[351250906,1738481436477,-686.53,0.00016438,2]
[351250907,1738481436486,-686.53,0.00016438,2]
[351250908,1738481436496,-686.53,0.00016438,2]
[351250909,1738481436505,-686.53,0.00016438,2]
[351250910,1738481436515,-758.26384,0.00016438,2]
[351250911,1738481436525,-686.53,0.00016438,2]
[351250912,1738481436534,-686.53,0.00016438,2]
[351250913,1738481436544,-686.53,0.00016438,2]
[351250914,1738481436555,-686.53,0.00016438,2]
[351250915,1738481436564,-500.0,0.00016438,2]
[351250916,1738481436574,-500.0,0.00016438,2]